[Event "4NCL 2022-2023"]
[Site "Daventry"]
[Date "2023.01.14"]
[Round "3.1"]
[White "Pert, Nicholas"]
[Black "Rudd, Jack"]
[Result "1-0"]
[ECO "D37"]
[WhiteElo "2540"]
[BlackElo "2310"]
[Annotator "TA"]
[PlyCount "81"]
[EventDate "2022.10.20"]
[EventType "team-tourn"]
[EventCountry "ENG"]
[SourceTitle "playchess.com"]
[Source "ChessBase"]
[SourceQuality "1"]
[TimeControl "40/6000+30:2400+30"]

{[%evp 17,81,14,36,0,8,0,0,0,0,-1,85,85,75,75,87,83,96,90,178,83,84,77,104,97,95,73,91,84,82,85,80,84,129,143,117,114,122,123,119,120,129,132,131,94,163,181,182,189,172,181,201,185,180,59,334,334,342,344,370,373,395,370,497,497,497,491]} 1. d4 {[%emt 0:00:03]} Nf6 {[%emt 0:00:05]} 2. Nf3 {[%emt 0:00:05]} e6 {[%emt 0:00:07]} 3. c4 {[%emt 0:00:06]} d5 {[%emt 0:00:05]} 4. Nc3 {[%emt 0:00:26]} Be7 {[%emt 0:00:07]} 5. Bf4 {[%emt 0:00:27]} O-O {[%emt 0:00:15]} 6. e3 {[%emt 0:00:35]} c5 {[%emt 0:00:50]} 7. dxc5 {[%emt 0:01:16]} Bxc5 {[%emt 0:01:20]} 8. Qc2 {[%emt 0:02:09]} Nc6 {[%emt 0:02:07]} 9. Rd1 {[%emt 0:02:06]} Qa5 {[%emt 0:02:40]} 10. Be2 {[%emt 0:01:24] D37: Queen's Gambit Declined: 5 Bf4.} Nb4 {[%emt 0:03:57] is the legacy move (10...dxc4).} 11. Qb3 {[%emt 0:02:09]} dxc4 {[%emt 0:01:54]} 12. Bxc4 {[%emt 0:00:28] The position is equal.} Nbd5 {[%emt 0:00:51]} 13. Be5 {[%emt 0:02:43]} Nd7 {[%emt 0:04:40]} (13... Qb4 $11) 14. Bxd5 $16 {[%emt 0:15:37]} Nxe5 {[%emt 0:00:41]} 15. Nxe5 {[%emt 0:00:37] Threatens to win with Be4.} (15. Bxb7 Bxb7 16. Nxe5 (16. Qxb7 $2 Rab8 $19 {[%mdl 64] Skewer}) 16... Bxg2 $17) 15... exd5 {[%emt 0:00:07]} 16. O-O {[%emt 0:00:13] [#]} (16. Qxd5 $6 Be6 17. Qe4 Ba3 $15) 16... Be6 $146 {[%emt 0:00:34][%cal Od5d4]} ({Predecessor:} 16... Re8 17. Qxd5 Be6 18. Qxb7 Rab8 19. Qe4 Rxb2 20. Nc4 Qxc3 21. Nxb2 Bf8 22. Nd3 Rd8 23. Nf4 Rxd1 24. Rxd1 Bxa2 25. h4 a5 26. Rd8 Bb3 27. Qe7 {1-0 Ibragimov,I (2585)-Onischuk,A (2653) Lindsborg KO rapid 2004 (3.1)}) 17. Nxd5 {[%emt 0:01:49] White is more active.} (17. Qxb7 $6 Rab8 18. Nc6 Rxb7 $11) 17... Rfd8 {[%emt 0:03:06]} (17... Rad8 $16) 18. e4 {[%emt 0:01:15]} (18. Qxb7 $18 {and White stays clearly on top.} Qxa2 19. Nc7) 18... Qa6 {[%emt 0:02:49] Wards off Nc6} 19. Rd2 {[%emt 0:05:40]} f6 {[%emt 0:03:42]} 20. Nd3 {[%emt 0:02:10] A dynamic duo of knights.} (20. Nf3 {looks sharper.} Rac8 21. a3 Re8 22. Qd1) 20... Bf8 {[%emt 0:00:50]} 21. Rfd1 {[%emt 0:17:51]} Bf7 {[%emt 0:01:58]} 22. N3f4 {[%emt 0:11:48]} Re8 {[%emt 0:02:16]} 23. Qf3 {[%emt 0:10:24] aiming for Nc7.} Rac8 {[%emt 0:01:31] Against Nc7} 24. b3 {[%emt 0:01:11]} Rc6 {[%emt 0:02:20]} 25. h4 {[%emt 0:00:45][%cal Bh2h4,Bh4h5][%mdl 32]} Qa5 {[%emt 0:03:16]} 26. Re2 {[%emt 0:06:30]} Qa3 {[%emt 0:03:23]} 27. g3 {[%emt 0:06:21]} Rc1 {[%emt 0:01:28]} 28. Rxc1 {[%emt 0:00:04]} Qxc1+ {[%emt 0:00:07]} 29. Kg2 {[%emt 0:00:04]} Qa1 {[%emt 0:01:09]} 30. h5 {[%emt 0:05:30][%cal Oh5h6]} h6 {[%emt 0:03:07] [#]} (30... Qe5 $16) 31. Ne3 $1 $18 {[%emt 0:01:47]} Qb1 {[%emt 0:04:20]} 32. Nf5 {[%emt 0:00:43]} Kh7 {[%emt 0:00:41]} 33. Qe3 {[%emt 0:03:46]} Re5 {[%emt 0:03:48]} 34. Qd4 {[%emt 0:02:47]} (34. Qxa7 $6 Rxe4 35. Ne3 (35. Qxb7 Rxf4 36. gxf4 Qxf5 $11) 35... Rxf4 36. gxf4 Bxh5 $16) 34... Be8 {[%emt 0:00:33]} 35. Nd3 {[%emt 0:04:51]} (35. Qxa7 $2 {perishes.} Bc6 36. Nd4 (36. f3 $2 Bc5 $19) 36... Bc5 $19) (35. Ng6 $18 Bxg6 36. hxg6+ Kxg6 37. Qd8 (37. Qxa7 Rxe4 38. Ne3 Re7 $11)) 35... Rxf5 $4 {[%mdl 8192] This move loses the game for Black.} (35... Bb5 $14 36. Re3 b6) 36. exf5 {[%emt 0:00:01]} Bc6+ {[%emt 0:04:08]} 37. f3 {[%emt 0:00:15]} Qd1 {[%emt 0:00:25] [#]} 38. Qe3 {[%emt 0:00:41]} ({And not} 38. Rf2 Bb5 $17) 38... Bd6 {[%emt 0:01:29]} 39. Nf2 {[%emt 0:01:37]} Qb1 {[%emt 0:00:24]} 40. Ne4 {[%emt 0:00:30]} (40. Qxa7 Bb5 41. Qe3 Bxe2 42. Qxe2 Qxf5 $16) 40... Be5 {[%emt 0:00:20]} 41. Qd2 {[%emt 0:00:00] Weighted Error Value: White=0.14 (very precise) /Black=0.29 (precise)} ({Not} 41. Qxa7 Qd1 $18) 1-0

[Event "4NCL 2022-2023"]
[Site "Daventry"]
[Date "2023.01.14"]
[Round "3.2"]
[White "Jones, Steven A"]
[Black "Williams, Simon K"]
[Result "0-1"]
[ECO "B75"]
[WhiteElo "2160"]
[BlackElo "2467"]
[Annotator "TA"]
[PlyCount "72"]
[EventDate "2022.10.20"]
[EventType "team-tourn"]
[EventCountry "ENG"]
[SourceTitle "playchess.com"]
[Source "ChessBase"]
[SourceQuality "1"]
[TimeControl "40/6000+30:2400+30"]

{[%evp 14,72,55,56,47,25,27,14,37,35,41,14,29,-6,0,0,60,48,63,36,27,41,72,0,0,0,0,-125,-41,-268,-273,-369,-244,-416,-413,-425,-426,-365,-393,-546,-385,-376,-355,-315,-264,-291,-65,-70,-66,-675,-67,-1183,-1195,-1119,83,-1027,-858,-852,-759,-29989,-29990]} 1. e4 {[%emt 0:00:48]} c5 {[%emt 0:00:17]} 2. Nf3 {[%emt 0:00:57]} d6 {[%emt 0:01:01]} 3. d4 {[%emt 0:00:43]} cxd4 {[%emt 0:00:11]} 4. Nxd4 {[%emt 0:01:02]} Nf6 {[%emt 0:00:10]} 5. Nc3 {[%emt 0:00:04]} g6 {[%emt 0:00:27]} 6. Be3 {[%emt 0:01:21]} a6 {[%emt 0:00:18]} 7. f3 {[%emt 0:01:14]} Bg7 {[%emt 0:00:09]} 8. Qd2 {[%emt 0:01:29]} h5 {[%emt 0:00:16] B75: Sicilian Dragon: Yugoslav Attack, Miscellaneous.} 9. O-O-O {[%emt 0:03:41] 9.Be2 is more fashionable.} b5 {[%emt 0:00:28] Against Bc4} 10. a3 {[%emt 0:07:36]} Bb7 {[%emt 0:00:31] The position is equal.} 11. Bd3 {[%emt 0:03:09][%cal Oe4e5]} Nbd7 {[%emt 0:01:12]} 12. h3 {[%emt 0:02:13]} Rc8 {[%emt 0:09:36]} 13. g4 {[%emt 0:05:58]} Ne5 {[%emt 0:00:19]} 14. Kb1 {[%emt 0:04:23] [#]} Nc4 $146 {[%emt 0:08:55]} (14... Nfd7 $11) ({Predecessor:} 14... Nfd7 15. f4 Nc4 16. Bxc4 Rxc4 17. gxh5 Rxh5 18. f5 Ne5 19. fxg6 Nxg6 20. Rhg1 Qd7 {½-½ Bilguun,S (2459)-Grandelius,N (2647) London Classic op 2017 (5)}) 15. Bxc4 $14 {[%emt 0:04:33]} Rxc4 {[%emt 0:00:13]} 16. Nde2 {[%emt 0:21:13]} Nd7 {[%emt 0:08:49]} 17. b3 {[%emt 0:02:14]} Ne5 {[%emt 0:36:49]} 18. bxc4 {[%emt 0:04:46]} (18. f4 $1 $16 {[%cal Rf4e5]} Nf3 19. Qd3) 18... Nxc4 $11 {[%emt 0:00:19]} 19. Qc1 {[%emt 0:00:27] Ka2 would be deadly.} Qa5 {[%emt 0:00:19] ...hxg4 is the strong threat.} 20. Ka2 {[%emt 0:06:24]} b4 {[%emt 0:04:03] Really sharp!} (20... Bxc3 $2 21. Nxc3 hxg4 22. fxg4 $18 (22. hxg4 $2 Rxh1 23. Rxh1 Qxc3 $19) (22. Bd4 e5 $14)) (20... hxg4 $1 $17 21. Bd4 e5 22. hxg4 Rxh1 23. Rxh1 exd4) 21. Kb3 $2 {[%emt 0:14:24]} ({White should try} 21. Nb1 $1 $15 Bb2 22. Qxb2 Nxb2 23. Kxb2) 21... bxc3 $19 {[%emt 0:01:57]} (21... Qxa3+ $2 22. Kxc4 Qxc1 23. Rxc1 $18) 22. Ka2 {[%emt 0:03:40]} O-O {[%emt 0:11:23]} 23. Nd4 $2 {[%emt 0:05:11]} (23. Bd4 Rb8 24. Bxg7 Kxg7 25. Nd4) 23... Rb8 {[%emt 0:03:41]} 24. Nb3 {[%emt 0:00:09]} Qa4 {[%emt 0:01:25]} 25. gxh5 {[%emt 0:01:34]} Bc8 {[%emt 0:00:05]} (25... gxh5 26. Rhg1 Ne5 27. Bh6 $18) 26. hxg6 {[%emt 0:02:13]} Be6 {[%emt 0:00:13][%cal Ob8b3]} (26... fxg6 $2 27. Rd5 $19) 27. gxf7+ {[%emt 0:00:10]} Kxf7 {[%emt 0:00:15][%cal Ob8b3] ( -> ...Rxb3!)} 28. Rd5 {[%emt 0:01:57]} Bxd5 {[%emt 0:01:48]} 29. exd5 {[%emt 0:00:06]} Na5 $2 {[%emt 0:00:32]} ({Better is} 29... Bf6 $19 {Strongly threatening ...Rb5.} 30. h4 Rb5) 30. Qd1 $1 $15 {[%emt 0:01:35]} Qc4 {[%emt 0:00:35] And now ...Nxb3 would win. Black has more active pieces.} (30... Nc4 31. Bc1 Na5 32. h4 $11) 31. Rg1 $2 {[%emt 0:01:29][%mdl 8192] [#]} (31. Bc1 $15) 31... Bf6 $2 $40 {[%emt 0:07:30][%mdl 128] Black mounts an attack.} ({Black should play} 31... Nxb3 $1 $19 32. Rxg7+ (32. cxb3 $2 {loses.} c2 $19) 32... Ke8 33. Rg8+ (33. cxb3 $2 {perishes.} c2 $19) 33... Kd7 34. cxb3 (34. Rxb8 Nc1+ {[%mdl 64] Discovered Attack (Double check)} 35. Kb1 Qa2+ 36. Kxc1 Qa1+ {[%mdl 64] Skewer} 37. Rb1 Qxa3+) 34... c2 35. bxc4 cxd1=Q 36. Rxb8 Qe2+ 37. Kb1 Qxe3) 32. Rg4 $2 {[%emt 0:00:37][%mdl 8192] [#]} (32. Bc1 $15 Rb5 33. Qe1 Qxd5 34. Qg3) 32... Rxb3 $1 $19 {[%emt 0:00:09][%mdl 576] Promotion} 33. Rxc4 {[%emt 0:00:51]} Rb2+ {[%emt 0:00:03]} 34. Ka1 {[%emt 0:00:11]} Nxc4 {[%emt 0:00:02]} 35. Bc5 {[%emt 0:05:21]} dxc5 {[%emt 0:00:37]} 36. d6 {[%emt 0:00:05]} Ne3 {[%emt 0:00:46] Ingenious play by Williams!   Weighted Error Value: White=0.81/Black=0.57} ({Inferior is} 36... exd6 37. Qd5+ Kg7 38. Qxc4 Rxc2 39. Qg4+ Kf7 40. Qd7+ Kg6 41. Qxd6 $11) 0-1

[Event "4NCL 2022-2023"]
[Site "Daventry"]
[Date "2023.01.14"]
[Round "3.3"]
[White "Kirk, Ezra"]
[Black "Cooper, John G"]
[Result "0-1"]
[ECO "B81"]
[WhiteElo "2432"]
[BlackElo "2231"]
[Annotator "TA"]
[PlyCount "62"]
[EventDate "2022.10.20"]
[EventType "team-tourn"]
[EventCountry "ENG"]
[SourceTitle "playchess.com"]
[Source "ChessBase"]
[SourceQuality "1"]
[TimeControl "40/6000+30:2400+30"]

{[%evp 16,62,36,33,41,45,56,5,9,0,0,-10,-8,-13,-2,-82,-89,-118,-89,-87,-68,-152,-50,-190,-176,-179,-149,-146,-143,-173,-179,-297,-276,-277,-306,-281,-289,-260,-270,-335,-313,-284,-326,-287,-303,-576,-554,-29983,-29984]} 1. e4 {[%emt 0:00:04]} c5 {[%emt 0:00:11]} 2. Nf3 {[%emt 0:00:08]} e6 {[%emt 0:00:13]} 3. d4 {[%emt 0:00:18]} cxd4 {[%emt 0:00:12]} 4. Nxd4 {[%emt 0:00:09]} Nf6 {[%emt 0:00:17]} 5. Nc3 {[%emt 0:00:06]} d6 {[%emt 0:00:08]} 6. g4 {[%emt 0:00:24]} h6 {[%emt 0:00:28]} 7. h4 {[%emt 0:01:29]} Nc6 {[%emt 0:00:34]} 8. Rg1 {[%emt 0:01:47]} d5 $1 {[%emt 0:00:48][%mdl 4] now scores much better than the old 8...h5.} 9. exd5 {[%emt 0:10:32]} Nxd5 {[%emt 0:00:22] B81: Sicilian Scheveningen: Keres Attack.} 10. Nxd5 {[%emt 0:04:49]} exd5 {[%emt 0:00:22]} 11. Qe2+ {[%emt 0:06:36]} (11. Be3 $14) 11... Be7 $11 {[%emt 0:02:29][%cal Bf8e7,Be7h4,Bh4f6][%mdl 32] The position is equal.} 12. Nxc6 {[%emt 0:05:59]} bxc6 {[%emt 0:00:24] [#]} 13. Bd2 $146 {[%emt 0:07:02]} ({Predecessor:} 13. g5 h5 14. Be3 Bg4 15. f3 Qa5+ 16. c3 Bf5 17. Bd4 Kd7 18. b4 Qc7 19. Qa6 {0-1 Maurer,S (2369)-Sosa Patino,C (2483) Pan American tt9 corr 2007 [3]}) 13... O-O {[%emt 0:09:26]} 14. O-O-O {[%emt 0:00:44]} Bxh4 {[%emt 0:26:47] With the idea ...Rb8.} 15. f4 {[%emt 0:09:34]} (15. g5 $1 $11 {remains equal.}) 15... Bf6 {[%emt 0:08:39]} 16. Rg3 {[%emt 0:12:40]} Qd6 {[%emt 0:13:07]} 17. Kb1 {[%emt 0:09:49]} a5 {[%emt 0:01:53]} 18. Qg2 {[%emt 0:05:20]} (18. Qh2 $15) 18... a4 {[%emt 0:11:40]} (18... Be6 $17 19. f5 Bd7) 19. a3 {[%emt 0:04:12] Loses the game.} (19. g5 $15 hxg5 20. Bd3) 19... Rb8 $19 {[%emt 0:04:29]} 20. Bc1 {[%emt 0:02:53] [#]} Bxg4 $1 $40 {[%emt 0:13:47][%mdl 704] Deflection. Black attacks with force.} 21. Rxg4 {[%emt 0:01:03] Rg3 would be deadly.} Qxa3 {[%emt 0:00:12][%cal Rb8b2] ( -> ...Rxb2+). Black is more active.} 22. c3 {[%emt 0:02:07]} Qxc3 {[%emt 0:02:26]} 23. Rd3 {[%emt 0:01:39]} (23. Qc2 {was worth a try.}) 23... Qe1 {[%emt 0:03:29]} 24. Re3 {[%emt 0:00:41]} Qd1 {[%emt 0:01:14]} (24... Rxb2+ $2 25. Qxb2 $18) 25. Rd3 {[%emt 0:03:26]} Rxb2+ {[%emt 0:02:00][%mdl 64] Overworked Piece} 26. Qxb2 {[%emt 0:00:06]} Qxg4 {[%emt 0:00:06]} 27. Qb6 {[%emt 0:03:01]} Qf5 {[%emt 0:02:14] Threatens to win with ...Re8.} 28. Ka2 {[%emt 0:01:16] [#]} c5 $1 {[%emt 0:01:15][%cal Bc6c5,Bc5c4][%mdl 32] And now ...c4 would win.} 29. Qb5 {[%emt 0:01:39]} Rd8 {[%emt 0:00:30] ...c4 is the strong threat.} 30. Qxa4 {[%emt 0:05:58]} (30. Rd2) 30... c4 {[%emt 0:00:19]} 31. Ra3 {[%emt 0:00:19]} Rb8 {[%emt 0:00:37] Magnificent play by Cooper!   Weighted Error Value: White=0.69/Black=0.10 (very precise)} 0-1

[Event "4NCL 2022-2023"]
[Site "Daventry"]
[Date "2023.01.14"]
[Round "3.4"]
[White "Redmond, John P."]
[Black "Pert, Richard G"]
[Result "1/2-1/2"]
[ECO "A06"]
[WhiteElo "2194"]
[BlackElo "2411"]
[Annotator "TA"]
[PlyCount "43"]
[EventDate "2022.10.20"]
[EventType "team-tourn"]
[EventCountry "ENG"]
[SourceTitle "playchess.com"]
[Source "ChessBase"]
[SourceQuality "1"]
[TimeControl "40/6000+30:2400+30"]

{[%evp 9,43,13,12,21,32,4,20,27,18,27,14,27,25,26,20,22,25,16,24,21,25,24,23,29,29,7,37,0,0,0,26,24,36,37,37,0]} 1. b3 {[%emt 0:00:04]} d5 {[%emt 0:01:46]} 2. Bb2 {[%emt 0:00:09]} Nf6 {[%emt 0:00:20]} 3. Nf3 {[%emt 0:00:28]} Bf5 {[%emt 0:00:56]} 4. Nh4 {[%emt 0:04:23]} Bd7 {[%emt 0:00:36]} 5. g3 {[%emt 0:09:00]} c5 {[%emt 0:06:57]} 6. Bg2 {[%emt 0:02:22] A06: Réti Opening: 1 Nf3 d5.} Bc6 {[%emt 0:00:43] [#]} 7. d4 $146 {[%emt 0:10:04]} ({Predecessor:} 7. O-O d4 8. Nf3 g6 9. e3 dxe3 10. fxe3 Bg7 11. Na3 O-O 12. Nc4 Nbd7 13. a4 {1-0 Mihok,O (2552)-Perkampus,L (2108) Skalica op-A 2022 (1)}) 7... cxd4 {[%emt 0:09:29]} 8. Nf3 {[%emt 0:03:51] The position is equal.} g6 {[%emt 0:04:32]} 9. Nxd4 {[%emt 0:03:12]} Bg7 {[%emt 0:00:10]} 10. O-O {[%emt 0:03:09]} O-O {[%emt 0:03:34]} 11. Nd2 {[%emt 0:02:56]} e5 {[%emt 0:05:04]} 12. Nxc6 {[%emt 0:02:33]} Nxc6 {[%emt 0:00:10]} 13. e3 {[%emt 0:06:01]} Re8 {[%emt 0:04:44]} 14. a3 {[%emt 0:11:23]} Qc7 {[%emt 0:05:04]} 15. c4 {[%emt 0:08:06]} d4 {[%emt 0:01:00]} 16. exd4 {[%emt 0:01:04]} exd4 {[%emt 0:09:35]} 17. Re1 {[%emt 0:07:21]} h5 {[%emt 0:19:28]} 18. Ne4 {[%emt 0:12:46]} Nxe4 {[%emt 0:06:44]} 19. Bxe4 {[%emt 0:00:29]} Re7 {[%emt 0:00:23]} (19... Rad8 $5 {[%cal Rd4d3]}) 20. Bd5 {[%emt 0:04:01]} Rae8 {[%emt 0:00:33]} 21. Rxe7 {[%emt 0:00:39]} Qxe7 {[%emt 0:00:19]} 22. Qd2 {[%emt 0:01:27] Weighted Error Value: White=0.06 (flawless) /Black=0.07 (flawless)} 1/2-1/2

[Event "4NCL 2022-2023"]
[Site "Daventry"]
[Date "2023.01.14"]
[Round "3.5"]
[White "Arkell, Keith C"]
[Black "Blackburn, Jonathan L B"]
[Result "1-0"]
[ECO "A61"]
[WhiteElo "2406"]
[BlackElo "2169"]
[Annotator "TA"]
[PlyCount "91"]
[EventDate "2022.10.20"]
[EventType "team-tourn"]
[EventCountry "ENG"]
[SourceTitle "playchess.com"]
[Source "ChessBase"]
[SourceQuality "1"]
[TimeControl "40/6000+30:2400+30"]

{[%evp 15,91,31,27,0,0,9,0,-15,-26,-23,-22,-28,-14,-26,0,-8,0,0,0,0,0,-42,326,262,340,333,364,351,395,285,261,272,272,256,234,257,255,239,291,291,291,292,298,298,294,286,262,205,224,160,235,233,221,220,352,222,399,364,346,287,260,227,375,325,320,316,423,401,851,833,962,910,918,912,971,930,813,774]} 1. d4 {[%emt 0:00:06]} Nf6 {[%emt 0:00:04]} 2. c4 {[%emt 0:00:11]} e6 {[%emt 0:00:16]} 3. Nf3 {[%emt 0:00:41][%cal Bg1f3,Bf3d2,Bd2c4][%mdl 32]} c5 {[%emt 0:00:05]} 4. d5 {[%emt 0:01:32]} exd5 {[%emt 0:00:04]} 5. cxd5 {[%emt 0:00:03]} d6 {[%emt 0:00:05]} 6. Nc3 {[%emt 0:00:05]} g6 {[%emt 0:00:03]} 7. Nd2 {[%emt 0:03:42]} Bg7 {[%emt 0:00:05]} 8. Nc4 {[%emt 0:00:03]} O-O {[%emt 0:00:05]} 9. g3 {[%emt 0:04:48] A61: Modern Benoni: Nf3 without early e4.} b6 {[%emt 0:28:46]} 10. a4 {[%emt 0:09:03]} Ng4 {[%emt 0:18:19] [#]} 11. Bg2 $146 {[%emt 0:14:26] The position is equal.} ({Predecessor:} 11. Nb5 Ne5 12. Nbxd6 Ba6 13. e3 Nxc4 14. Nxc4 Nd7 15. f3 f5 16. Be2 h5 17. O-O {1-0 Tsatsalashvili,K (2326)-Haast,A (2235) EU-ch (Women) 11th 2010 (10)}) 11... Bxc3+ {[%emt 0:07:13]} 12. bxc3 {[%emt 0:00:06]} Qf6 {[%emt 0:01:11][%csl LRc3,LRf2]} 13. O-O {[%emt 0:00:17]} Qxc3 {[%emt 0:10:49]} 14. Nb2 {[%emt 0:17:33]} Ba6 {[%emt 0:02:00]} 15. h3 {[%emt 0:06:46]} Nf6 {[%emt 0:02:09] Threatens to win with ...Re8.} 16. Re1 $1 {[%emt 0:13:10]} Re8 {[%emt 0:05:33]} 17. e4 $1 {[%emt 0:01:28]} Nbd7 {[%emt 0:00:41]} 18. Rb1 {[%emt 0:08:43]} (18. Re3 $5 {[%cal Re3c3]} Qd4 19. Qc2 $11) 18... Ne5 $2 {[%emt 0:03:41][%mdl 8192] [#] This move loses the game for Black.} (18... Nxd5 $2 19. Bd2 Qa3 20. exd5 $18) (18... Qd4 $1 $15 {stays ahead.} 19. Bf4 Qxd1 20. Rbxd1 c4) 19. Bd2 $1 $18 {[%emt 0:02:36]} Qd4 {[%emt 0:01:24] [#]} 20. Qc1 {[%emt 0:02:19] Bc3 would be deadly.} Nd3 {[%emt 0:14:39]} 21. Nxd3 {[%emt 0:00:54]} Qxd3 {[%emt 0:00:22]} 22. Bf1 {[%emt 0:10:41][%mdl 64] Skewer} Qf3 {[%emt 0:00:06]} 23. Re3 {[%emt 0:03:41]} (23. Bxa6 Nxe4 24. Rxe4 Rxe4 $14) 23... Qh5 {[%emt 0:00:05] White must now prevent ...Bxf1.} 24. g4 {[%emt 0:02:51]} (24. Bxa6 Nxe4 25. Bb5 Re7 $18) 24... Qh4 {[%emt 0:04:48] aiming for ...Bxf1.} 25. Bxa6 {[%emt 0:00:07] Hoping for Qe1.} Rxe4 {[%emt 0:00:59]} 26. Qe1 {[%emt 0:02:41]} Rae8 {[%emt 0:02:54]} 27. f3 {[%emt 0:00:31][%csl LRe4,LRh4]} (27. Rxe4 Rxe4 28. Qf1 Rxa4 $11) 27... Qxe1+ {[%emt 0:01:28]} 28. Rexe1 {[%emt 0:00:32]} ({Weaker is} 28. Rbxe1 Rxe3 29. Rxe3 Rxe3 30. Bxe3 Nxd5 $16) 28... Rxe1+ {[%emt 0:00:52]} 29. Rxe1 {[%emt 0:01:19]} Rxe1+ {[%emt 0:00:06]} 30. Bxe1 {[%emt 0:00:03]} Nxd5 {[%emt 0:00:03]} 31. Bb7 {[%emt 0:01:11]} Nf4 {[%emt 0:03:26]} 32. Bd2 {[%emt 0:00:33]} Nd3 {[%emt 0:00:02]} (32... Ne6 $16 33. Kf2 Kf8) 33. Kf1 {[%emt 0:01:24]} Nb2 {[%emt 0:00:48]} 34. Bc6 {[%emt 0:00:20]} d5 {[%emt 0:00:19]} (34... Kf8 {was necessary.} 35. Ke2 Ke7) 35. Bc3 {[%emt 0:00:44]} ({Much less strong is} 35. Bxd5 Nxa4 36. Ke2 Kf8 $18) 35... Nd1 {[%emt 0:00:11]} (35... Nc4 36. Bf6 (36. Bxd5 $2 {perishes.} Ne3+ 37. Ke2 Nxd5 $19) 36... d4) 36. Bf6 {[%emt 0:01:10][%cal Of1e2] Ke2! is the strong threat.} d4 {[%emt 0:00:27]} 37. Ke2 {[%emt 0:00:17]} Nc3+ {[%emt 0:01:37]} 38. Kd3 {[%emt 0:00:28]} h6 {[%emt 0:00:02]} (38... Kf8 $142 39. a5 bxa5) 39. h4 {[%emt 0:00:51]} Kf8 {[%emt 0:00:13]} 40. Kc4 {[%emt 0:01:10]} Kg8 {[%emt 0:00:35]} 41. Be5 {[%emt 0:40:53]} f5 {[%emt 0:43:00]} (41... Na2 $142 42. a5 d3) 42. gxf5 {[%emt 0:00:23] White is clearly winning.} gxf5 {[%emt 0:00:11]} 43. Bb8 {[%emt 0:00:21] A strong pair of Bishops.} a6 {[%emt 0:00:37]} 44. Bc7 {[%emt 0:01:04]} b5+ {[%emt 0:00:07]} 45. axb5 {[%emt 0:00:10]} axb5+ {[%emt 0:00:03]} 46. Bxb5 {[%emt 0:00:35] Weighted Error Value: White=0.19 (very precise) /Black=0.47} 1-0

[Event "4NCL 2022-2023"]
[Site "Daventry"]
[Date "2023.01.14"]
[Round "3.6"]
[White "Zeidler, Sven P."]
[Black "Eggleston, David J"]
[Result "1/2-1/2"]
[ECO "C01"]
[WhiteElo "2138"]
[BlackElo "2359"]
[Annotator "TA"]
[PlyCount "55"]
[EventDate "2022.10.20"]
[EventType "team-tourn"]
[EventCountry "ENG"]
[SourceTitle "playchess.com"]
[Source "ChessBase"]
[SourceQuality "1"]
[TimeControl "40/6000+30:2400+30"]

{[%evp 23,55,0,0,0,0,0,0,3,14,6,13,0,0,0,7,9,8,7,7,7,7,7,8,8,15,14,13,12,9,9,8,6,10,0]} 1. e4 {[%emt 0:00:03]} e6 {[%emt 0:00:07]} 2. d4 {[%emt 0:00:05]} d5 {[%emt 0:00:07]} 3. exd5 {[%emt 0:00:05]} exd5 {[%emt 0:00:07]} 4. Nf3 {[%emt 0:00:06]} Bd6 {[%emt 0:00:05]} 5. c4 {[%emt 0:00:20]} Nf6 {[%emt 0:00:12]} 6. Nc3 {[%emt 0:00:45]} dxc4 {[%emt 0:00:06]} 7. Bxc4 {[%emt 0:00:19]} O-O {[%emt 0:00:08]} 8. O-O {[%emt 0:00:22]} Nc6 {[%emt 0:00:16]} 9. h3 {[%emt 0:08:10]} h6 {[%emt 0:00:15]} 10. Re1 {[%emt 0:02:31]} Bf5 {[%emt 0:07:51]} 11. Ne5 {[%emt 0:11:19]} Bxe5 {[%emt 0:00:34]} 12. dxe5 {[%emt 0:00:13]} Qxd1 {[%emt 0:00:16] The position is equal.} 13. Nxd1 {[%emt 0:00:14] C01: French: Exchange Variation.} Nd7 {[%emt 0:00:42]} 14. Bf4 {[%emt 0:15:07]} Nb6 {[%emt 0:01:58] [#]} 15. Bf1 $146 {[%emt 0:16:46]} ({Predecessor:} 15. Ne3 Nxc4 16. Nxc4 Rfd8 17. Red1 Be6 18. Ne3 a5 19. a3 Bb3 20. Rxd8+ Rxd8 21. Nf1 {0-1 Collell Rodriguez,V (1873)-Mellado Trivino,J (2362) La Pobla de Lillet op-A 28th 2018 (3)}) 15... Nb4 {[%emt 0:00:36]} 16. Ne3 {[%emt 0:08:05] Wards off N6d5} Bd3 {[%emt 0:02:19]} 17. Red1 {[%emt 0:06:04]} Bxf1 {[%emt 0:03:43]} 18. Kxf1 {[%emt 0:01:53]} Rad8 {[%emt 0:09:57] [#]} 19. e6 $1 {[%emt 0:02:53] aiming for e7.} Rxd1+ {[%emt 0:00:53]} (19... Rc8 20. a3) 20. Rxd1 {[%emt 0:02:12] Threatens to win with e7.} fxe6 {[%emt 0:00:12]} 21. Bxc7 {[%emt 0:01:26] Black must now prevent Bd6.} N6d5 {[%emt 0:00:21]} 22. Nxd5 {[%emt 0:00:29]} Nxd5 $11 {[%emt 0:00:04][%mdl 4096] Endgame KRB-KRN} 23. Rc1 $1 {[%emt 0:00:11]} Nb4 {[%emt 0:07:43][%cal Of8f2]} 24. Bg3 {[%emt 0:01:23]} Nd5 {[%emt 0:09:09]} 25. Ke2 {[%emt 0:01:12]} Kf7 {[%emt 0:00:56]} 26. Be5 {[%emt 0:02:52]} g5 {[%emt 0:01:46]} 27. Rc4 {[%emt 0:02:11]} Kg6 {[%emt 0:05:22]} 28. g4 {[%emt 0:01:24] A rather calm draw.   Weighted Error Value: White=0.01 (flawless) /Black=0.02 (flawless)} 1/2-1/2